fUSD/lending_fUSD_20250204
["ID","MTS","AMOUNT","RATE_DAILY","PERIOD"]
[351675560,1738707048400,-500.0,0.00010407,2]
[351675561,1738707048410,-500.0,0.00010407,2]
[351675562,1738707048420,-248.79,0.00010407,2]
[351675563,1738707048429,-500.0,0.00010407,2]
[351675564,1738707048440,-500.0,0.00010407,2]
[351675565,1738707048450,-500.0,0.00010407,2]
[351675566,1738707048460,-500.0,0.00010407,2]
[351675567,1738707048470,-254.17,0.00010407,2]
[351675568,1738707048480,-500.0,0.00010407,2]
[351675569,1738707048489,-161.72,0.00010407,2]
[351675570,1738707048499,-500.0,0.00010407,2]
[351675571,1738707048509,-500.0,0.00010407,2]
[351675572,1738707048525,-500.0,0.00010407,2]
[351675573,1738707048535,-159.93,0.00010407,2]
[351675574,1738707048545,-500.0,0.00010407,2]
[351675575,1738707048555,-509.95,0.00010407,2]
[351675576,1738707048566,-497.96,0.00010407,2]
[351675577,1738707048576,-500.0,0.00010407,2]
[351675578,1738707048585,-103.83184736,0.00010407,2]
[351675579,1738707048606,-96.05815264,0.00010407,2]
[351675580,1738707048617,-385.19184736,0.00010407,2]
[351675581,1738707049364,-500.0,0.00010269,2]
[351675582,1738707049374,-500.0,0.00010269,2]
[351675583,1738707049386,-639.74,0.0001027,2]
[351675584,1738707049396,-500.0,0.0001027,2]
[351675585,1738707049407,-500.0,0.0001027,2]
[351675586,1738707049417,-500.0,0.0001027,2]
[351675587,1738707049427,-500.0,0.0001027,2]
[351675588,1738707049438,-114.80815264,0.00010407,2]
[351675589,1738707049448,-500.0,0.00010407,2]
[351675590,1738707049457,-556.95188061,0.00010407,2]
[351675591,1738707049471,-48.96811939,0.00010407,2]
[351675592,1738707049481,-500.0,0.00010407,2]
[351675593,1738707049490,-500.0,0.00010407,2]
[351675594,1738707049500,-500.0,0.00010407,2]
[351675595,1738707049511,-500.0,0.00010407,2]
[351675596,1738707049527,-646.29,0.00010407,2]
[351675597,1738707049537,-500.0,0.00010407,2]
[351675598,1738707049548,-506.18664595,0.00010407,2]
[351675599,1738707049558,-614.29,0.00010407,2]
[351675600,1738707049567,-500.0,0.00010407,2]
[351675601,1738707049577,-626.75895872,0.00010407,2]
[351675602,1738707049587,-500.0,0.00010407,2]
[351675603,1738707049597,-500.0,0.00010407,2]
[351675604,1738707049606,-500.0,0.00010407,2]
[351675605,1738707049616,-500.0,0.00010407,2]
[351675606,1738707049625,-500.0,0.00010407,2]
[351675607,1738707049634,-312.63592021,0.00010407,2]
[351675608,1738707049645,-187.36407979,0.00010407,2]
[351675609,1738707049655,-500.0,0.00010407,2]
[351675610,1738707049664,-500.0,0.00010407,2]
[351675611,1738707049674,-500.0,0.00010407,2]
[351675612,1738707049683,-500.0,0.00010407,2]
[351675613,1738707049692,-500.0,0.00010407,2]
[351675614,1738707049701,-500.0,0.00010407,2]
[351675615,1738707049710,-121.1768237,0.00010407,2]
[351675616,1738707049721,-378.8231763,0.00010407,2]
[351675617,1738707049730,-235.73501337,0.00010407,2]
[351675618,1738707049742,-264.26498663,0.00010407,2]
[351675619,1738707049751,-500.0,0.00010407,2]
[351675620,1738707049761,-500.0,0.00010407,2]
[351675621,1738707049772,-500.0,0.00010407,2]
[351675622,1738707049942,-222.72,0.00010407,2]
[351675623,1738707049961,-500.0,0.00010407,2]
[351675624,1738707049972,-500.0,0.00010407,2]
[351675625,1738707049981,-500.0,0.00010407,2]
[351675626,1738707049991,-359.82,0.00010407,2]
[351675627,1738707050003,-500.0,0.00010407,2]
[351675628,1738707050015,-500.0,0.00010407,2]
[351675629,1738707050025,-500.0,0.00010407,2]
[351675630,1738707050035,-500.0,0.00010407,2]
[351675631,1738707050045,-500.0,0.00010407,2]
[351675632,1738707050055,-500.0,0.00010407,2]
[351675633,1738707050065,-500.0,0.00010407,2]
[351675634,1738707050074,-500.0,0.00010407,2]
[351675635,1738707050084,-500.0,0.00010407,2]
[351675636,1738707050094,-500.0,0.00010407,2]
[351675637,1738707050103,-500.0,0.00010407,2]
[351675638,1738707050114,-500.0,0.00010407,2]
[351675639,1738707050124,-242.3,0.00010407,2]
[351675640,1738707050136,-500.0,0.00010407,2]
[351675641,1738707050146,-384.11,0.00010407,2]
[351675642,1738707050156,-500.0,0.00010407,2]
[351675643,1738707050167,-500.0,0.00010407,2]
[351675644,1738707050178,-500.0,0.00010407,2]
[351675645,1738707050189,-500.0,0.00010407,2]
[351675646,1738707050199,-500.0,0.00010407,2]
[351675647,1738707050210,-500.0,0.00010407,2]
[351675648,1738707050221,-500.0,0.00010407,2]
[351675649,1738707050232,-500.0,0.00010407,2]
[351675650,1738707050242,-500.0,0.00010407,2]
[351675651,1738707050252,-438.89,0.00010407,2]
[351675652,1738707050267,-576.77927231,0.00010407,2]
[351675653,1738707050286,-66.35072769,0.00010407,2]
[351675654,1738707050297,-500.0,0.00010407,2]
[351675655,1738707050307,-500.0,0.00010407,2]
[351675656,1738707050317,-547.95315866,0.00010407,2]
[351675657,1738707050328,-500.0,0.00010407,2]
[351675658,1738707050338,-500.0,0.00010407,2]
[351675659,1738707050348,-500.0,0.00010407,2]
[351675660,1738707050358,-500.0,0.00010407,2]
[351675661,1738707050369,-500.0,0.00010407,2]
[351675662,1738707050380,-347.59,0.00010407,2]
[351675663,1738707050390,-500.0,0.00010407,2]
[351675664,1738707050400,-500.0,0.00010407,2]
[351675665,1738707050410,-500.0,0.00010407,2]
[351675666,1738707050421,-500.0,0.00010407,2]
[351675667,1738707050431,-500.0,0.00010407,2]
[351675668,1738707050442,-500.0,0.00010407,2]
[351675669,1738707050452,-500.0,0.00010407,2]
[351675670,1738707050463,-265.19,0.00010407,2]
[351675671,1738707050474,-500.0,0.00010407,2]
[351675672,1738707050484,-722.02,0.00010407,2]
[351675673,1738707050495,-500.0,0.00010407,2]
[351675674,1738707050504,-500.0,0.00010407,2]
[351675675,1738707050518,-500.0,0.00010407,2]
[351675676,1738707050528,-500.0,0.00010407,2]
[351675677,1738707050538,-500.0,0.00010407,2]
[351675678,1738707050549,-500.0,0.00010407,2]
[351675679,1738707050558,-500.0,0.00010407,2]
[351675680,1738707050569,-1279.62,0.00010407,2]
[351675681,1738707050578,-500.0,0.00010407,2]
[351675682,1738707050588,-500.0,0.00010407,2]
[351675683,1738707050598,-721.01447418,0.00010407,2]
[351675684,1738707050611,-462.95552582,0.00010407,2]
[351675685,1738707050621,-500.0,0.00010407,2]
[351675686,1738707050630,-659.04,0.00010407,2]
[351675687,1738707050640,-500.0,0.00010407,2]
[351675688,1738707050650,-500.0,0.00010407,2]
[351675689,1738707050660,-1266.36,0.00010407,2]
[351675690,1738707050669,-500.0,0.00010407,2]
[351675691,1738707050679,-353.96,0.00010407,2]
[351675692,1738707050689,-500.0,0.00010407,2]
[351675693,1738707050698,-500.0,0.00010407,2]
[351675694,1738707050709,-500.0,0.00010407,2]
[351675695,1738707050719,-198.53,0.00010407,2]
[351675696,1738707050729,-719.74,0.00010407,2]
[351675697,1738707050739,-500.0,0.00010407,2]
[351675698,1738707050750,-306.52,0.00010407,2]
[351675699,1738707050760,-500.0,0.00010407,2]
[351675700,1738707050775,-500.0,0.00010407,2]
[351675701,1738707050785,-500.0,0.00010407,2]
[351675702,1738707050795,-500.0,0.00010407,2]
[351675703,1738707050805,-500.0,0.00010407,2]
[351675704,1738707050815,-500.0,0.00010407,2]
[351675705,1738707050825,-541.74,0.00010407,2]
[351675706,1738707050834,-673.33,0.00010407,2]
[351675707,1738707050844,-500.0,0.00010407,2]
[351675708,1738707050853,-568.32,0.00010407,2]
[351675709,1738707050863,-500.0,0.00010407,2]
[351675710,1738707050873,-500.0,0.00010407,2]
[351675711,1738707050884,-500.0,0.00010407,2]
[351675712,1738707050893,-500.0,0.00010407,2]
[351675713,1738707050903,-500.0,0.00010407,2]
[351675714,1738707050913,-224.79,0.00010407,2]
[351675715,1738707050923,-787.56,0.00010407,2]
[351675716,1738707050934,-267.45,0.00010407,2]
[351675717,1738707050944,-500.0,0.00010407,2]
[351675718,1738707050954,-500.0,0.00010407,2]
[351675719,1738707050966,-500.0,0.00010407,2]
[351675720,1738707050977,-500.0,0.00010407,2]
[351675721,1738707050987,-500.0,0.00010407,2]
[351675722,1738707050998,-500.0,0.00010407,2]
[351675723,1738707051009,-500.0,0.00010407,2]
[351675724,1738707051023,-500.0,0.00010407,2]
[351675725,1738707051034,-500.0,0.00010407,2]
[351675726,1738707051044,-500.0,0.00010407,2]
[351675727,1738707051054,-500.0,0.00010407,2]
[351675728,1738707051063,-500.0,0.00010407,2]
[351675729,1738707051073,-500.0,0.00010407,2]
[351675730,1738707051082,-500.0,0.00010407,2]
[351675731,1738707051091,-500.0,0.00010407,2]
[351675732,1738707051101,-500.0,0.00010407,2]
[351675733,1738707051111,-500.0,0.00010407,2]
[351675734,1738707051120,-500.0,0.00010407,2]
[351675735,1738707051129,-500.0,0.00010407,2]
[351675736,1738707051137,-500.0,0.00010407,2]
[351675737,1738707051147,-500.0,0.00010407,2]
[351675738,1738707051156,-500.0,0.00010407,2]
[351675739,1738707051166,-500.0,0.00010407,2]
[351675740,1738707051177,-500.0,0.00010407,2]
[351675741,1738707051186,-500.0,0.00010407,2]
[351675742,1738707051196,-427.48,0.00010407,2]
[351675743,1738707051205,-500.0,0.00010407,2]
[351675744,1738707051215,-500.0,0.00010407,2]
[351675745,1738707051224,-309.96,0.00010407,2]
[351675746,1738707051234,-500.0,0.00010407,2]
[351675747,1738707051244,-1390.62,0.00010407,2]
[351675748,1738707051254,-500.0,0.00010407,2]
[351675749,1738707051267,-500.0,0.00010407,2]
[351675750,1738707051278,-500.0,0.00010407,2]
[351675751,1738707051288,-500.0,0.00010407,2]
[351675752,1738707051298,-500.0,0.00010407,2]
[351675753,1738707051307,-500.0,0.00010407,2]
[351675754,1738707051318,-556.7,0.00010407,2]
[351675755,1738707051328,-500.0,0.00010408,2]
[351675756,1738707051338,-500.0,0.00010408,2]
[351675757,1738707051348,-500.0,0.00010408,2]
[351675758,1738707051358,-192.58,0.00010408,2]
[351675759,1738707051368,-266.62,0.00010408,2]
[351675760,1738707051377,-500.0,0.00010408,2]
[351675761,1738707051387,-500.0,0.00010408,2]
[351675762,1738707051397,-500.0,0.00010408,2]
[351675763,1738707051407,-500.0,0.00010408,2]
[351675764,1738707051418,-169.58,0.00010408,2]
[351675765,1738707051428,-500.0,0.00010408,2]
[351675766,1738707051438,-162.28,0.00010408,2]
[351675767,1738707051448,-500.0,0.00010408,2]
[351675768,1738707051458,-277.52,0.00010408,2]
[351675769,1738707051467,-605.67,0.00010408,2]
[351675770,1738707051477,-535.82,0.00010408,2]
[351675771,1738707051486,-500.0,0.00010408,2]
[351675772,1738707051496,-500.0,0.00010408,2]
[351675773,1738707051506,-500.0,0.00010408,2]
[351675774,1738707051520,-500.0,0.00010408,2]
[351675775,1738707051531,-500.0,0.00010408,2]
[351675776,1738707051540,-500.0,0.00010408,2]
[351675777,1738707051550,-500.0,0.00010408,2]
[351675778,1738707051560,-500.0,0.00010408,2]
[351675779,1738707051570,-500.0,0.00010408,2]
[351675780,1738707051580,-324.87447418,0.00010408,2]
[351675781,1738707051593,-76.02552582,0.00010408,2]
[351675782,1738707051603,-427.76516773,0.00010408,2]
[351675783,1738707051615,-72.23483227,0.00010408,2]
[351675784,1738707051624,-500.0,0.00010408,2]
[351675785,1738707051634,-4.96679332,0.00010408,2]
[351675786,1738707051645,-495.03320668,0.00010408,2]
[351675787,1738707051656,-500.0,0.00010408,2]
[351675788,1738707051666,-500.0,0.00010408,2]
[351675789,1738707051676,-163.47,0.00010408,2]
[351675790,1738707051685,-500.0,0.00010408,2]
[351675791,1738707051695,-500.0,0.00010408,2]
[351675792,1738707051704,-55.57539332,0.00010408,2]
[351675793,1738707051716,-444.42460668,0.00010408,2]
[351675794,1738707051725,-359.11,0.00010408,2]
[351675795,1738707051735,-184.46,0.00010408,2]
[351675796,1738707051745,-43.60539329,0.00010408,2]
[351675797,1738707051759,-456.39460671,0.00010408,2]
[351675798,1738707051773,-500.0,0.00010408,2]
[351675799,1738707051783,-500.0,0.00010408,2]
[351675800,1738707051793,-500.0,0.00010408,2]
[351675801,1738707051803,-500.0,0.00010408,2]
[351675802,1738707051813,-500.0,0.00010408,2]
[351675803,1738707051823,-519.40206151,0.00010408,2]
[351675804,1738707051833,-500.0,0.00010408,2]
[351675805,1738707051843,-500.0,0.00010408,2]
[351675806,1738707051852,-500.0,0.00010408,2]
[351675807,1738707051862,-500.0,0.00010408,2]
[351675808,1738707051872,-164.46,0.00010408,2]
[351675809,1738707051883,-461.02,0.00010408,2]
[351675810,1738707051892,-219.34281178,0.00010408,2]
[351675811,1738707051904,-362.43718822,0.00010408,2]
[351675812,1738707051914,-500.0,0.00010408,2]
[351675813,1738707051924,-370.99037779,0.00010408,2]
[351675814,1738707051937,-129.00962221,0.00010408,2]
[351675815,1738707051947,-500.0,0.00010408,2]
[351675816,1738707051957,-344.16949653,0.00010408,2]
[351675817,1738707052179,-370.13,0.00010134,2]
[351675818,1738707052189,-500.0,0.00010269,2]
[351675819,1738707052199,-500.0,0.0001027,2]
[351675820,1738707052209,-500.0,0.0001027,2]
[351675821,1738707052219,-500.0,0.00010407,2]
[351675822,1738707052229,-155.83050347,0.00010408,2]
[351675823,1738707052239,-500.0,0.00010408,2]
[351675824,1738707052248,-641.07,0.00010408,2]
[351675825,1738707052259,-500.0,0.00010408,2]
[351675826,1738707052275,-227.52,0.00010408,2]
[351675827,1738707052286,-500.0,0.00010408,2]
[351675828,1738707052296,-481.20835633,0.00010408,2]
[351675829,1738707052308,-18.79164367,0.00010408,2]
[351675830,1738707052318,-500.0,0.00010408,2]
[351675831,1738707052327,-500.0,0.00010408,2]
[351675832,1738707052337,-411.44,0.00010408,2]
[351675833,1738707052347,-500.0,0.00010408,2]
[351675834,1738707052357,-500.0,0.00010408,2]
[351675835,1738707052367,-227.85,0.00010408,2]
[351675836,1738707052376,-500.0,0.00010408,2]
[351675837,1738707052386,-500.0,0.00010408,2]
[351675838,1738707052395,-500.0,0.00010408,2]
[351675839,1738707052405,-500.0,0.00010408,2]
[351675840,1738707052415,-500.0,0.00010408,2]
[351675841,1738707052424,-500.0,0.00010408,2]
[351675842,1738707052434,-500.0,0.00010408,2]
[351675843,1738707052443,-500.0,0.00010408,2]
[351675844,1738707052453,-64.32554851,0.00010408,2]
[351675845,1738707052556,-350.18445149,0.00010408,2]
[351675846,1738707052565,-131.97722851,0.00010408,2]
[351675847,1738707052577,-368.02277149,0.00010408,2]
[351675848,1738707052586,-31.56538551,0.00010408,2]
[351675849,1738707052597,-368.27461449,0.00010408,2]
[351675850,1738707052604,-166.96863901,0.00010408,2]
[351675851,1738707052613,-264.66850001,0.00010408,2]
[351675852,1738707052626,-571.93,0.00010269,2]
[351675853,1738707052632,-68.36286098,0.00010408,2]
[351675854,1738707052639,-500.0,0.00010408,2]
[351675855,1738707052646,-500.0,0.00010408,2]
[351675856,1738707052655,-500.0,0.00010408,2]
[351675857,1738707052665,-500.0,0.00010408,2]
[351675858,1738707052676,-498.28,0.00010408,2]
[351675859,1738707052685,-500.0,0.00010408,2]
[351675860,1738707052694,-361.42713902,0.00010442,2]
[351675861,1738707052923,-267.10286098,0.00010442,2]
[351675862,1738707052932,-3072.92549864,0.00010443,2]
[351675863,1738707052941,-53903.58333151,0.0001048,2]
[351675864,1738707052951,-260.98192329,0.00010542,2]
[351675865,1738707052964,-500.0,0.00010543,2]
[351675866,1738707052974,-353.489039,0.00010543,2]
[351675867,1738707052984,-500.0,0.00010543,2]
[351675868,1738707052994,-403.700368,0.00010543,2]
[351675869,1738707053003,-500.0,0.00010543,2]
[351675870,1738707053013,-500.0,0.00010543,2]
[351675871,1738707053026,-500.0,0.00010543,2]
[351675872,1738707053036,-500.0,0.00010543,2]
[351675873,1738707053046,-500.0,0.00010543,2]
[351675874,1738707053055,-500.0,0.00010543,2]
[351675875,1738707053065,-500.66,0.00010543,2]
[351675876,1738707053074,-500.0,0.00010543,2]
[351675877,1738707053083,-500.0,0.00010543,2]
[351675878,1738707053093,-500.0,0.00010543,2]
[351675879,1738707053103,-885.15,0.00010543,2]
[351675880,1738707053112,-500.0,0.00010543,2]
[351675881,1738707053121,-591.26,0.00010543,2]
[351675882,1738707053131,-1818.58,0.00010543,2]
[351675883,1738707053139,-500.0,0.00010543,2]
[351675884,1738707053149,-500.0,0.00010543,2]
[351675885,1738707053158,-1544.89,0.00010543,2]
[351675886,1738707053168,-728.98,0.00010543,2]
[351675887,1738707053177,-500.0,0.00010543,2]
[351675888,1738707053197,-303.89,0.00010543,2]
[351675889,1738707053210,-500.0,0.00010543,2]
[351675890,1738707053219,-500.0,0.00010543,2]
[351675891,1738707053229,-500.0,0.00010543,2]
[351675892,1738707053238,-500.0,0.00010543,2]
[351675893,1738707053248,-500.0,0.00010543,2]
[351675894,1738707053257,-500.0,0.00010543,2]
[351675895,1738707053269,-500.0,0.00010543,2]
[351675896,1738707053279,-676.15,0.00010543,2]
[351675897,1738707053288,-670.54,0.00010543,2]
[351675898,1738707053298,-500.0,0.00010543,2]
[351675899,1738707053307,-581.21,0.00010543,2]
[351675900,1738707053317,-500.0,0.00010543,2]
[351675901,1738707053327,-500.0,0.00010543,2]
[351675902,1738707053336,-500.0,0.00010543,2]
[351675903,1738707053346,-500.0,0.00010543,2]
[351675904,1738707053355,-500.0,0.00010543,2]
[351675905,1738707053365,-1009.26,0.00010543,2]
[351675906,1738707053374,-500.0,0.00010543,2]
[351675907,1738707053384,-500.0,0.00010543,2]
[351675908,1738707053393,-500.0,0.00010543,2]
[351675909,1738707053403,-500.0,0.00010543,2]
[351675910,1738707053413,-414.94,0.00010543,2]
[351675911,1738707053423,-500.0,0.00010543,2]
[351675912,1738707053432,-647.11,0.00010543,2]
[351675913,1738707053442,-500.0,0.00010543,2]
[351675914,1738707053452,-703.09,0.00010543,2]
[351675915,1738707053463,-500.0,0.00010543,2]
[351675916,1738707053473,-500.0,0.00010543,2]
[351675917,1738707053482,-500.0,0.00010543,2]
[351675918,1738707053491,-500.0,0.00010543,2]
[351675919,1738707053501,-500.0,0.00010543,2]
[351675920,1738707053510,-868.55,0.00010543,2]
[351675921,1738707053527,-500.0,0.00010543,2]
[351675922,1738707053536,-500.0,0.00010543,2]
[351675923,1738707053545,-500.0,0.00010544,2]
[351675924,1738707053555,-240.1,0.00010544,2]
[351675925,1738707053564,-592.27,0.00010544,2]
[351675926,1738707053576,-500.0,0.00010544,2]
[351675927,1738707053586,-377.09,0.00010544,2]
[351675928,1738707053595,-253.23,0.00010544,2]
[351675929,1738707053605,-500.0,0.00010544,2]
[351675930,1738707053614,-500.0,0.00010544,2]
[351675931,1738707053624,-542.52,0.00010544,2]
[351675932,1738707053634,-500.0,0.00010544,2]
[351675933,1738707053644,-500.0,0.00010544,2]
[351675934,1738707053653,-532.2,0.00010544,2]
[351675935,1738707053662,-276.44,0.00010544,2]
[351675936,1738707053672,-80.10697858,0.00010544,2]
[351675937,1738707053689,-419.89302142,0.00010544,2]
[351675938,1738707053699,-500.0,0.00010544,2]
[351675939,1738707053709,-205.12,0.00010544,2]
[351675940,1738707053718,-500.0,0.00010544,2]
[351675941,1738707053728,-500.0,0.00010544,2]
[351675942,1738707053738,-500.0,0.00010544,2]
[351675943,1738707053747,-500.0,0.00010544,2]
[351675944,1738707053758,-230.66,0.00010544,2]
[351675945,1738707053773,-500.0,0.00010544,2]
[351675946,1738707053783,-365.28931644,0.00010544,2]
[351675947,1738707053795,-134.71068356,0.00010544,2]
[351675948,1738707053804,-500.0,0.00010544,2]
[351675949,1738707053814,-500.0,0.00010544,2]
[351675950,1738707053823,-500.0,0.00010544,2]
[351675951,1738707053833,-500.0,0.00010544,2]
[351675952,1738707053842,-187.41304073,0.00010544,2]
[351675953,1738707053854,-312.58695927,0.00010544,2]
[351675954,1738707053864,-500.0,0.00010544,2]
[351675955,1738707053873,-500.0,0.00010544,2]
[351675956,1738707053882,-500.0,0.00010544,2]
[351675957,1738707053891,-113.45716073,0.00010544,2]
[351675958,1738707053902,-386.54283927,0.00010544,2]
[351675959,1738707053911,-113.45716073,0.00010544,2]
[351675960,1738707053922,-295.85300019,0.00010544,2]
[351675961,1738707053933,-90.68983908,0.00010544,2]
[351675962,1738707053946,-164.29904083,0.00010544,2]
[351675963,1738707053958,-61.84095917,0.00010544,2]
[351675964,1738707053967,-174.49,0.00010544,2]
[351675965,1738707053977,-367.14746275,0.00010544,2]
[351675966,1738707054073,-500.0,0.00010269,2]
[351675967,1738707054083,-500.0,0.0001027,2]
[351675968,1738707054092,-132.85253725,0.00010544,2]
[351675969,1738707054101,-500.0,0.00010544,2]
[351675970,1738707054112,-500.0,0.00010544,2]
[351675971,1738707054122,-297.92,0.00010544,2]
[351675972,1738707054131,-500.0,0.00010544,2]
[351675973,1738707054140,-500.0,0.00010544,2]
[351675974,1738707054149,-500.0,0.00010544,2]
[351675975,1738707054158,-500.0,0.00010544,2]
[351675976,1738707054168,-500.0,0.00010544,2]
[351675977,1738707054177,-500.0,0.00010544,2]
[351675978,1738707054186,-500.0,0.00010544,2]
[351675979,1738707054195,-319.87,0.00010544,2]
[351675980,1738707054204,-500.0,0.00010544,2]
[351675981,1738707054213,-576.8122004,0.00010544,2]
[351675982,1738707054222,-500.0,0.00010544,2]
[351675983,1738707054232,-592.94,0.00010544,2]
[351675984,1738707054241,-500.0,0.00010544,2]
[351675985,1738707054250,-521.85,0.00010544,2]
[351675986,1738707054259,-500.0,0.00010544,2]
[351675987,1738707054271,-500.0,0.00010544,2]
[351675988,1738707054280,-500.0,0.00010544,2]
[351675989,1738707054289,-267.49,0.00010544,2]
[351675990,1738707054298,-500.0,0.00010544,2]
[351675991,1738707054307,-500.0,0.00010544,2]
[351675992,1738707054316,-500.0,0.00010544,2]
[351675993,1738707054326,-500.0,0.00010544,2]
[351675994,1738707054335,-500.0,0.00010544,2]
[351675995,1738707054344,-500.0,0.00010544,2]
[351675996,1738707054353,-500.0,0.00010544,2]
[351675997,1738707054363,-500.0,0.00010544,2]
[351675998,1738707054372,-500.0,0.00010544,2]
[351675999,1738707054381,-236.7,0.00010544,2]
[351676000,1738707054391,-500.0,0.00010544,2]
[351676001,1738707054400,-389.67,0.00010544,2]
[351676002,1738707054409,-500.0,0.00010544,2]
[351676003,1738707054419,-545.46,0.00010544,2]
[351676004,1738707054429,-500.0,0.00010544,2]
[351676005,1738707054451,-500.0,0.00010544,2]
[351676006,1738707054465,-500.0,0.00010544,2]
[351676007,1738707054477,-500.0,0.00010544,2]
[351676008,1738707054487,-500.0,0.00010544,2]
[351676009,1738707054497,-500.0,0.00010544,2]
[351676010,1738707054507,-500.0,0.00010544,2]
[351676011,1738707054519,-500.0,0.00010544,2]
[351676012,1738707054528,-500.0,0.00010544,2]
[351676013,1738707054538,-500.0,0.00010544,2]
[351676014,1738707054547,-500.0,0.00010544,2]
[351676015,1738707054557,-500.0,0.00010544,2]
[351676016,1738707054566,-500.0,0.00010544,2]
[351676017,1738707054576,-500.0,0.00010544,2]
[351676018,1738707054586,-500.0,0.00010544,2]
[351676019,1738707054595,-500.0,0.00010544,2]
[351676020,1738707054605,-500.0,0.00010544,2]
[351676021,1738707054614,-500.0,0.00010544,2]
[351676022,1738707054623,-356.92,0.00010544,2]
[351676023,1738707054632,-500.0,0.00010544,2]
[351676024,1738707054642,-500.0,0.00010544,2]
[351676025,1738707054651,-500.0,0.00010544,2]
[351676026,1738707054660,-544.97,0.00010544,2]
[351676027,1738707054669,-500.0,0.00010544,2]
[351676028,1738707054678,-500.0,0.00010544,2]
[351676029,1738707054688,-500.0,0.00010544,2]
[351676030,1738707054697,-500.0,0.00010544,2]
[351676031,1738707054705,-500.0,0.00010544,2]
[351676032,1738707054714,-500.0,0.00010544,2]
[351676033,1738707054723,-500.0,0.00010544,2]
[351676034,1738707054733,-1279.62,0.00010544,2]
[351676035,1738707054742,-500.0,0.00010544,2]
[351676036,1738707054751,-500.0,0.00010544,2]
[351676037,1738707054760,-1183.97,0.00010544,2]
[351676038,1738707054772,-500.0,0.00010544,2]
[351676039,1738707054782,-659.04,0.00010544,2]
[351676040,1738707054791,-500.0,0.00010544,2]
[351676041,1738707054800,-1266.36,0.00010544,2]
[351676042,1738707054809,-500.0,0.00010544,2]
[351676043,1738707054819,-500.0,0.00010544,2]
[351676044,1738707054828,-500.0,0.00010544,2]
[351676045,1738707054837,-719.74,0.00010544,2]
[351676046,1738707054847,-500.0,0.00010544,2]
[351676047,1738707054856,-500.0,0.00010544,2]
[351676048,1738707054865,-500.0,0.00010544,2]
[351676049,1738707054874,-454.8,0.00010544,2]
[351676050,1738707054884,-500.0,0.00010544,2]
[351676051,1738707054894,-500.0,0.00010544,2]
[351676052,1738707054903,-500.0,0.00010544,2]
[351676053,1738707054912,-673.33,0.00010544,2]
[351676054,1738707054921,-500.0,0.00010544,2]
[351676055,1738707054930,-154.95,0.00010544,2]
[351676056,1738707054940,-500.0,0.00010544,2]
[351676057,1738707054952,-500.0,0.00010544,2]
[351676058,1738707054961,-500.0,0.00010544,2]
[351676059,1738707054970,-500.0,0.00010544,2]